fUSD/lending_fUSD_20240615
["ID","MTS","AMOUNT","RATE_DAILY","PERIOD"]
[329527148,1718417515428,-500.0,0.00023287,3]
[329527149,1718417515441,-500.0,0.00023287,3]
[329527150,1718417515480,-513.03836538,0.00023287,3]
[329527151,1718417515499,-500.0,0.00023287,3]
[329527152,1718417515553,-500.0,0.00023287,3]
[329527153,1718417515583,-500.0,0.00023287,3]
[329527154,1718417515601,-500.0,0.00023287,3]
[329527155,1718417515636,-511.01109285,0.00023287,3]
[329527156,1718417515685,-500.0,0.00023287,3]
[329527157,1718417515704,-513.62006041,0.00023287,3]
[329527158,1718417515737,-500.0,0.00023287,3]
[329527159,1718417515755,-500.0,0.00023287,3]
[329527160,1718417515770,-553.50414679,0.00023287,3]
[329527161,1718417515784,-515.16465995,0.00023287,3]
[329527162,1718417515814,-519.86320771,0.00023287,3]
[329527163,1718417515836,-329.24896937,0.00023287,3]
[329527164,1718417515854,-517.64925244,0.00023287,3]
[329527165,1718417515877,-558.89,0.00023287,3]
[329527166,1718417515902,-516.75146655,0.00023287,3]
[329527167,1718417515918,-500.0,0.00023287,3]
[329527168,1718417515952,-500.0,0.00023287,3]
[329527169,1718417515974,-500.0,0.00023287,3]
[329527170,1718417516022,-500.0,0.00023287,3]
[329527171,1718417516051,-500.0,0.00023287,3]
[329527172,1718417516071,-500.0,0.00023287,3]
[329527173,1718417516109,-500.0,0.00023287,3]
[329527174,1718417516127,-500.0,0.00023287,3]
[329527175,1718417516143,-500.0,0.00023287,3]
[329527176,1718417516164,-500.0,0.00023287,3]
[329527177,1718417516180,-500.0,0.00023287,3]
[329527178,1718417516200,-500.0,0.00023287,3]
[329527179,1718417516225,-512.90214004,0.00023287,3]
[329527180,1718417516252,-516.06602771,0.00023287,3]
[329527181,1718417516266,-500.0,0.00023287,3]
[329527182,1718417516293,-500.0,0.00023287,3]
[329527183,1718417516372,-500.0,0.00023287,3]
[329527184,1718417516407,-500.0,0.00023287,3]
[329527185,1718417516435,-500.0,0.00023287,3]
[329527186,1718417516449,-500.0,0.00023287,3]
[329527187,1718417516462,-500.0,0.00023287,3]
[329527188,1718417516485,-500.0,0.00023287,3]
[329527189,1718417516518,-221.93702608,0.00023287,3]
[329527190,1718417516531,-509.59974515,0.00023287,3]
[329527191,1718417516564,-500.0,0.00023287,3]
[329527192,1718417516594,-500.0,0.00023287,3]
[329527193,1718417516609,-518.09097351,0.00023287,3]
[329527194,1718417516660,-500.0,0.00023287,3]
[329527195,1718417516700,-607.69,0.00023287,3]
[329527196,1718417516715,-500.0,0.00023287,3]
[329527197,1718417516741,-500.0,0.00023287,3]
[329527198,1718417516770,-500.0,0.00023287,3]
[329527199,1718417516795,-785.34,0.00023287,3]
[329527200,1718417516817,-500.0,0.00023287,3]
[329527201,1718417516854,-500.0,0.00023287,3]
[329527202,1718417516897,-500.0,0.00023287,3]
[329527203,1718417516910,-500.0,0.00023287,3]
[329527204,1718417516934,-517.77816301,0.00023287,3]
[329527205,1718417516948,-500.0,0.00023287,3]
[329527206,1718417516983,-500.0,0.00023287,3]
[329527207,1718417517022,-500.0,0.00023287,3]
[329527208,1718417517040,-500.0,0.00023287,3]
[329527209,1718417517053,-500.0,0.00023287,3]
[329527210,1718417517065,-500.0,0.00023287,3]
[329527211,1718417517078,-500.0,0.00023287,3]
[329527212,1718417517097,-500.0,0.00023287,3]
[329527213,1718417517144,-500.0,0.00023287,3]
[329527214,1718417517170,-500.0,0.00023287,3]
[329527215,1718417517182,-500.0,0.00023287,3]
[329527216,1718417517195,-500.0,0.00023287,3]
[329527217,1718417517206,-500.0,0.00023287,3]
[329527218,1718417517234,-500.0,0.00023287,3]
[329527219,1718417517276,-500.0,0.00023287,3]
[329527220,1718417517308,-514.51115372,0.00023287,3]
[329527221,1718417517329,-500.0,0.00023287,3]
[329527222,1718417517357,-525.75593327,0.00023287,3]
[329527223,1718417517376,-415.56104351,0.00023287,2]
[329527224,1718417517409,-525.97928882,0.00023287,3]
[329527225,1718417517421,-172.89506766,0.00023287,3]
[329527226,1718417517437,-536.69079888,0.00023287,3]
[329527227,1718417517449,-507.65,0.00023287,3]
[329527228,1718417517471,-500.0,0.00023287,3]
[329527229,1718417517484,-500.0,0.00023287,3]
[329527230,1718417517497,-500.0,0.00023287,3]
[329527231,1718417517510,-418.08140927,0.00023287,3]
[329527232,1718417517522,-500.0,0.00023287,3]
[329527233,1718417517535,-500.0,0.00023287,3]
[329527234,1718417517649,-500.0,0.00023287,3]
[329527235,1718417517664,-500.0,0.00023287,3]
[329527236,1718417517681,-500.0,0.00023287,3]
[329527237,1718417517700,-500.0,0.00023287,3]
[329527238,1718417517713,-500.0,0.00023287,3]
[329527239,1718417517735,-500.0,0.00023287,3]
[329527240,1718417517754,-500.0,0.00023287,3]
[329527241,1718417517766,-500.0,0.00023287,3]
[329527242,1718417517789,-500.0,0.00023287,3]
[329527243,1718417517804,-500.0,0.00023287,3]
[329527244,1718417517819,-500.0,0.00023287,3]
[329527245,1718417517835,-552.03056336,0.00023287,3]
[329527246,1718417517849,-500.0,0.00023287,3]
[329527247,1718417517860,-500.0,0.00023287,3]
[329527248,1718417517872,-500.0,0.00023287,3]
[329527249,1718417517885,-536.85358777,0.00023287,3]
[329527250,1718417517898,-515.84,0.00023287,3]
[329527251,1718417517909,-500.0,0.00023287,3]
[329527252,1718417517922,-500.0,0.00023287,3]
[329527253,1718417517934,-500.0,0.00023287,3]
[329527254,1718417517948,-500.0,0.00023287,3]
[329527255,1718417517966,-500.0,0.00023287,3]
[329527256,1718417517984,-193.1896138,0.00023287,3]
[329527257,1718417518001,-501.18650708,0.00023287,3]
[329527258,1718417518017,-500.0,0.00023287,3]
[329527259,1718417518031,-500.0,0.00023287,3]
[329527260,1718417518047,-500.0,0.00023287,3]
[329527261,1718417518061,-500.0,0.00023287,3]
[329527262,1718417518078,-508.80513072,0.00023287,3]
[329527263,1718417518093,-500.0,0.00023287,3]
[329527264,1718417518113,-500.0,0.00023287,3]
[329527265,1718417518125,-500.0,0.00023287,3]
[329527266,1718417518143,-501.07,0.00023287,3]
[329527267,1718417518180,-500.0,0.00023287,3]
[329527268,1718417518203,-515.70358554,0.00023287,3]
[329527269,1718417518232,-500.0,0.00023287,3]
[329527270,1718417518251,-500.0,0.00023287,3]
[329527271,1718417518304,-500.0,0.00023287,3]
[329527272,1718417518336,-500.0,0.00023287,3]
[329527273,1718417518359,-500.0,0.00023287,3]
[329527274,1718417518376,-513.49484774,0.00023287,3]
[329527275,1718417518415,-500.0,0.00023287,3]
[329527276,1718417518436,-150.0,0.00023287,3]
[329527277,1718417518460,-500.0,0.00023287,3]
[329527278,1718417518471,-500.0,0.00023287,3]
[329527279,1718417518485,-500.0,0.00023287,3]
[329527280,1718417518499,-500.0,0.00023287,3]
[329527281,1718417518518,-500.0,0.00023287,3]
[329527282,1718417518532,-500.0,0.00023287,3]
[329527283,1718417518545,-500.0,0.00023287,3]
[329527284,1718417518559,-500.0,0.00023287,3]
[329527285,1718417518572,-500.0,0.00023287,3]
[329527286,1718417518588,-500.0,0.00023287,3]
[329527287,1718417518605,-500.0,0.00023287,3]
[329527288,1718417518618,-500.0,0.00023287,3]
[329527289,1718417518632,-449.68550116,0.00023287,3]
[329527290,1718417518666,-672.79,0.00023287,3]
[329527291,1718417518692,-614.14934454,0.00023287,3]
[329527292,1718417518754,-500.0,0.00023287,3]
[329527293,1718417518779,-500.0,0.00023287,3]
[329527294,1718417518804,-500.0,0.00023287,3]
[329527295,1718417518827,-500.0,0.00023287,3]
[329527296,1718417518840,-500.0,0.00023287,3]
[329527297,1718417518867,-870.98,0.00023287,3]
[329527298,1718417518882,-668.73,0.00023287,3]
[329527299,1718417518894,-500.0,0.00023287,3]
[329527300,1718417518908,-500.0,0.00023287,3]
[329527301,1718417518921,-500.0,0.00023287,3]
[329527302,1718417518937,-500.0,0.00023287,3]
[329527303,1718417518958,-500.0,0.00023287,3]
[329527304,1718417518972,-500.0,0.00023287,3]
[329527305,1718417518989,-500.0,0.00023287,3]
[329527306,1718417519011,-500.0,0.00023287,3]
[329527307,1718417519035,-1385.03,0.00023287,3]
[329527308,1718417519070,-500.0,0.00023287,3]
[329527309,1718417519104,-500.0,0.00023287,3]
[329527310,1718417519124,-500.0,0.00023287,3]
[329527311,1718417519142,-500.0,0.00023287,3]
[329527312,1718417519179,-500.0,0.00023287,3]
[329527313,1718417519208,-500.0,0.00023287,3]
[329527314,1718417519247,-545.94,0.00023287,3]
[329527315,1718417519277,-728.36,0.00023287,3]
[329527316,1718417519298,-888.58,0.00023287,3]
[329527317,1718417519325,-500.0,0.00023287,3]
[329527318,1718417519352,-500.0,0.00023287,3]
[329527319,1718417519376,-500.0,0.00023287,3]
[329527320,1718417519413,-500.0,0.00023287,3]
[329527321,1718417519431,-500.0,0.00023287,3]
[329527322,1718417519448,-500.0,0.00023287,3]
[329527323,1718417519474,-682.82,0.00023287,3]
[329527324,1718417519507,-500.0,0.00023287,3]
[329527325,1718417519526,-182.98626786,0.00023287,3]
[329527326,1718417519559,-500.0,0.00023287,3]
[329527327,1718417519582,-500.0,0.00023287,3]
[329527328,1718417519604,-500.0,0.00023287,3]
[329527329,1718417519627,-532.27,0.00023287,3]
[329527330,1718417519644,-500.0,0.00023287,3]
[329527331,1718417519663,-4841.14,0.00023287,3]
[329527332,1718417519688,-500.0,0.00023287,3]
[329527333,1718417519707,-606.39,0.00023287,3]
[329527334,1718417519747,-280.98113063,0.00023287,3]
[329527335,1718417519765,-500.0,0.00023287,3]
[329527336,1718417519786,-856.26,0.00023287,3]
[329527337,1718417519822,-500.0,0.00023287,3]
[329527338,1718417519841,-500.0,0.00023287,3]
[329527339,1718417519858,-500.0,0.00023287,3]
[329527340,1718417519877,-553.38651117,0.00023287,3]
[329527341,1718417519898,-500.0,0.00023287,3]
[329527342,1718417519914,-506.1,0.00023287,3]
[329527343,1718417519935,-500.0,0.00023287,3]
[329527344,1718417519951,-500.0,0.00023287,3]
[329527345,1718417519967,-724.3,0.00023287,3]
[329527346,1718417519984,-380.64918652,0.00023287,3]
[329527347,1718417520002,-531.35,0.00023287,3]
[329527348,1718417520019,-813.58,0.00023287,3]
[329527349,1718417520039,-500.0,0.00023287,3]
[329527350,1718417520054,-500.0,0.00023287,3]
[329527351,1718417520085,-500.0,0.00023287,3]
[329527352,1718417520106,-500.0,0.00023287,3]
[329527353,1718417520122,-500.0,0.00023287,3]
[329527354,1718417520141,-500.0,0.00023287,3]
[329527355,1718417520162,-519.65,0.00023287,3]
[329527356,1718417520182,-778.57,0.00023287,3]
[329527357,1718417520205,-515.24,0.00023287,3]
[329527358,1718417520226,-500.0,0.00023287,3]
[329527359,1718417520242,-500.0,0.00023287,3]
[329527360,1718417520257,-1047.51,0.00023287,3]
[329527361,1718417520273,-500.0,0.00023287,3]
[329527362,1718417520288,-903.22,0.00023287,3]
[329527363,1718417520312,-500.0,0.00023287,3]
[329527364,1718417520356,-746.57,0.00023287,3]
[329527365,1718417520384,-500.0,0.00023287,3]
[329527366,1718417520401,-639.11,0.00023287,3]
[329527367,1718417520431,-500.0,0.00023287,3]
[329527368,1718417520452,-777.96,0.00023287,3]
[329527369,1718417520476,-233.74989301,0.00023287,3]
[329527370,1718417520491,-803.6,0.00023287,3]
[329527371,1718417520515,-500.0,0.00023287,3]
[329527372,1718417520538,-500.0,0.00023287,3]
[329527373,1718417520570,-2432.85,0.00023287,3]
[329527374,1718417520591,-500.0,0.00023287,3]
[329527375,1718417520615,-500.0,0.00023287,3]
[329527376,1718417520634,-500.0,0.00023287,3]
[329527377,1718417520666,-3528.32,0.00023287,3]
[329527378,1718417520682,-559.3,0.00023287,3]
[329527379,1718417520704,-518.99,0.00023287,3]
[329527380,1718417520723,-500.0,0.00023287,3]
[329527381,1718417520751,-626.24,0.00023287,3]
[329527382,1718417520774,-2169.8,0.00023287,3]
[329527383,1718417520792,-500.0,0.00023287,3]
[329527384,1718417520812,-500.0,0.00023287,3]
[329527385,1718417520829,-1397.37,0.00023287,3]
[329527386,1718417520864,-500.0,0.00023287,3]
[329527387,1718417520889,-500.0,0.00023287,3]
[329527388,1718417520919,-1812.96,0.00023287,3]
[329527389,1718417520938,-1116.08,0.00023287,3]
[329527390,1718417520957,-2203.0,0.00023287,3]
[329527391,1718417521115,-2898.04,0.00023287,3]
[329527392,1718417521139,-500.0,0.00023287,3]
[329527393,1718417521154,-500.0,0.00023287,3]
[329527394,1718417521174,-1318.8,0.00023287,3]
[329527395,1718417521186,-500.0,0.00023287,3]
[329527396,1718417521215,-500.0,0.00023287,3]
[329527397,1718417521227,-500.0,0.00023287,3]
[329527398,1718417521241,-1088.26,0.00023287,3]
[329527399,1718417521259,-500.0,0.00023287,3]
[329527400,1718417521270,-1288.4,0.00023287,3]
[329527401,1718417521300,-7905.56,0.00023287,3]
[329527402,1718417521316,-500.0,0.00023287,3]
[329527403,1718417521339,-500.0,0.00023287,3]
[329527404,1718417521364,-500.0,0.00023287,3]
[329527405,1718417521375,-974.3,0.00023287,3]
[329527406,1718417521392,-771.35,0.00023287,3]
[329527407,1718417521411,-2138.1,0.00023287,3]
[329527408,1718417521429,-691.68,0.00023287,3]
[329527409,1718417521441,-500.0,0.00023287,3]
[329527410,1718417521454,-3270.81,0.00023287,3]
[329527411,1718417521474,-500.0,0.00023287,3]
[329527412,1718417521489,-713.64,0.00023287,3]
[329527413,1718417521513,-500.0,0.00023287,3]
[329527414,1718417521525,-599.22,0.00023287,3]
[329527415,1718417521541,-500.0,0.00023287,3]
[329527416,1718417521557,-500.0,0.00023287,3]
[329527417,1718417521568,-500.0,0.00023287,3]
[329527418,1718417521581,-523.84,0.00023287,3]
[329527419,1718417521597,-500.0,0.00023287,3]
[329527420,1718417521608,-500.0,0.00023287,3]
[329527421,1718417521626,-1195.79,0.00023287,3]
[329527422,1718417521638,-500.0,0.00023287,3]
[329527423,1718417521650,-500.0,0.00023287,3]
[329527424,1718417521669,-548.4784004,0.00023287,3]
[329527425,1718417521681,-500.0,0.00023287,3]
[329527426,1718417521692,-500.0,0.00023287,3]
[329527427,1718417521704,-1341.44,0.00023287,3]
[329527428,1718417521724,-500.0,0.00023287,3]
[329527429,1718417521737,-1129.63,0.00023287,3]
[329527430,1718417521760,-500.0,0.00023287,3]
[329527431,1718417521777,-500.0,0.00023287,3]
[329527432,1718417521787,-500.0,0.00023287,3]
[329527433,1718417521802,-500.0,0.00023287,3]
[329527434,1718417521816,-1346.88,0.00023287,3]
[329527435,1718417521827,-3501.23,0.00023287,3]
[329527436,1718417521839,-516.84,0.00023287,3]
[329527437,1718417521857,-500.0,0.00023287,3]
[329527438,1718417521870,-500.0,0.00023287,3]
[329527439,1718417521886,-1291.54,0.00023287,3]
[329527440,1718417521902,-809.78,0.00023287,3]
[329527441,1718417521914,-500.0,0.00023287,3]
[329527442,1718417521926,-500.0,0.00023287,3]
[329527443,1718417521952,-923.8,0.00023287,3]
[329527444,1718417521970,-500.0,0.00023287,3]
[329527445,1718417521985,-1654.95,0.00023287,3]
[329527446,1718417521997,-854.0,0.00023287,3]
[329527447,1718417522015,-500.0,0.00023287,3]
[329527448,1718417522030,-4144.87,0.00023287,3]
[329527449,1718417522042,-500.0,0.00023287,3]
[329527450,1718417522055,-500.0,0.00023287,3]
[329527451,1718417522068,-2305.21,0.00023287,3]
[329527452,1718417522081,-500.0,0.00023287,3]
[329527453,1718417522098,-500.0,0.00023287,3]
[329527454,1718417522118,-623.91008377,0.00023287,3]
[329527455,1718417522132,-500.0,0.00023287,3]
[329527456,1718417522146,-500.0,0.00023287,3]
[329527457,1718417522165,-1983.64,0.00023287,3]
[329527458,1718417522178,-500.0,0.00023287,3]
[329527459,1718417522204,-500.0,0.00023287,3]
[329527460,1718417522228,-500.0,0.00023287,3]
[329527461,1718417522261,-500.0,0.00023287,3]
[329527462,1718417522276,-768.32,0.00023287,3]
[329527463,1718417522300,-500.0,0.00023287,3]
[329527464,1718417522316,-500.0,0.00023287,3]
[329527465,1718417522332,-5336.34,0.00023287,3]
[329527466,1718417522350,-822.64,0.00023287,3]
[329527467,1718417522362,-500.0,0.00023287,3]
[329527468,1718417522374,-453.74,0.0002334,2]
[329527469,1718417522393,-180.79515138,0.00023413,2]
[329527470,1718417522412,-155.34510174,0.00023557,2]
[329527471,1718417522440,-500.0,0.0002356,3]
[329527472,1718417522452,-477985.5941306,0.00023561,13]
[329527473,1718417522471,-516.27005809,0.00023561,3]
[329527474,1718417522482,-500.0,0.00023561,3]
[329527475,1718417522495,-563.59200602,0.00023561,3]
[329527476,1718417522506,-500.0,0.00023561,3]
[329527477,1718417522524,-500.0,0.00023561,3]
[329527478,1718417522543,-390.33802086,0.00023561,3]
[329527479,1718417522564,-500.0,0.00023561,3]
[329527480,1718417522600,-668.77,0.00023561,3]
[329527481,1718417522620,-500.0,0.00023561,3]
[329527482,1718417522659,-319.40698431,0.00023561,3]
[329527483,1718417522684,-500.0,0.00023561,3]
[329527484,1718417522711,-500.0,0.00023561,3]
[329527485,1718417522758,-500.0,0.00023561,3]
[329527486,1718417522776,-500.0,0.00023561,3]
[329527487,1718417522797,-500.0,0.00023561,3]
[329527488,1718417522813,-512.01586371,0.00023561,3]
[329527489,1718417522827,-500.0,0.00023561,3]
[329527490,1718417522839,-500.0,0.00023561,3]
[329527491,1718417522877,-514.03880183,0.00023561,3]
[329527492,1718417522900,-500.0,0.00023561,3]
[329527493,1718417522922,-500.0,0.00023561,3]
[329527494,1718417522935,-397.8791425,0.00023561,3]
[329527495,1718417522947,-500.0,0.00023561,3]
[329527496,1718417522967,-500.0,0.00023561,3]
[329527497,1718417522979,-500.0,0.00023561,3]
[329527498,1718417522991,-558.89,0.00023561,3]
[329527499,1718417523004,-500.0,0.00023561,3]
[329527500,1718417523016,-500.0,0.00023561,3]
[329527501,1718417523028,-500.0,0.00023561,3]
[329527502,1718417523042,-507.44783729,0.00023561,3]
[329527503,1718417523054,-500.0,0.00023561,3]
[329527504,1718417523067,-500.0,0.00023561,3]
[329527505,1718417523079,-500.0,0.00023561,3]
[329527506,1718417523091,-500.0,0.00023561,3]
[329527507,1718417523111,-500.0,0.00023561,3]
[329527508,1718417523127,-500.0,0.00023561,3]
[329527509,1718417523139,-500.0,0.00023561,3]
[329527510,1718417523150,-514.52563587,0.00023561,3]
[329527511,1718417523170,-500.0,0.00023561,3]
[329527512,1718417523189,-385.29159345,0.00023561,3]
[329527513,1718417523202,-500.0,0.00023561,3]
[329527514,1718417523214,-500.0,0.00023561,3]
[329527515,1718417523228,-500.0,0.00023561,3]
[329527516,1718417523244,-613.05177215,0.00023561,3]
[329527517,1718417523260,-186.37800234,0.00023561,3]
[329527518,1718417523282,-500.0,0.00023561,3]
[329527519,1718417523300,-500.0,0.00023561,3]
[329527520,1718417523322,-500.0,0.00023561,3]
[329527521,1718417523336,-500.0,0.00023561,3]
[329527522,1718417523348,-607.69,0.00023561,3]
[329527523,1718417523392,-500.0,0.00023561,3]
[329527524,1718417523406,-500.0,0.00023561,3]
[329527525,1718417523447,-500.0,0.00023561,3]
[329527526,1718417523459,-785.34,0.00023561,3]
[329527527,1718417523470,-500.0,0.00023561,3]
[329527528,1718417523482,-500.0,0.00023561,3]
[329527529,1718417523494,-500.0,0.00023561,3]
[329527530,1718417523505,-500.0,0.00023561,3]
[329527531,1718417523517,-500.0,0.00023561,3]
[329527532,1718417523530,-544.13776418,0.00023561,3]
[329527533,1718417523540,-500.0,0.00023561,3]
[329527534,1718417523560,-500.0,0.00023561,3]
[329527535,1718417523596,-500.0,0.00023561,3]
[329527536,1718417523609,-352.59269395,0.00023561,3]
[329527537,1718417523621,-500.0,0.00023561,3]
[329527538,1718417523634,-500.0,0.00023561,3]
[329527539,1718417523647,-500.0,0.00023561,3]
[329527540,1718417523664,-345.12541234,0.00023561,3]
[329527541,1718417523678,-500.0,0.00023561,3]
[329527542,1718417523691,-500.0,0.00023561,3]
[329527543,1718417523704,-170.98362495,0.00023561,3]
[329527544,1718417523723,-500.0,0.00023561,3]
[329527545,1718417523746,-500.0,0.00023561,3]
[329527546,1718417523783,-500.0,0.00023561,3]
[329527547,1718417523796,-507.65,0.00023561,3]
[329527548,1718417523808,-500.0,0.00023561,3]
[329527549,1718417523820,-231.95565417,0.00023561,3]
[329527550,1718417523831,-510.5264387,0.00023561,3]
[329527551,1718417523843,-500.0,0.00023561,3]
[329527552,1718417523856,-500.0,0.00023561,3]
[329527553,1718417523869,-500.0,0.00023561,3]
[329527554,1718417523893,-500.0,0.00023561,3]
[329527555,1718417523908,-500.0,0.00023561,3]
[329527556,1718417523924,-511.91752777,0.00023561,3]
[329527557,1718417523935,-200.6686178,0.00023561,3]
[329527558,1718417523946,-436.28459221,0.00023561,3]
[329527559,1718417524058,-500.0,0.00023561,3]
[329527560,1718417524070,-525.21999938,0.00023561,3]
[329527561,1718417524085,-500.0,0.00023561,3]
[329527562,1718417524097,-553.80801159,0.00023561,3]
[329527563,1718417524110,-500.0,0.00023561,3]
[329527564,1718417524123,-500.0,0.00023561,3]
[329527565,1718417524136,-511.8445131,0.00023561,3]
[329527566,1718417524163,-500.0,0.00023561,3]
[329527567,1718417524177,-515.84,0.00023561,3]
[329527568,1718417524197,-500.0,0.00023561,3]
[329527569,1718417524210,-500.0,0.00023561,3]
[329527570,1718417524224,-158.02819046,0.00023561,3]
[329527571,1718417524235,-500.0,0.00023561,3]
[329527572,1718417524248,-500.0,0.00023561,3]
[329527573,1718417524261,-500.0,0.00023561,3]
[329527574,1718417524274,-500.0,0.00023561,3]
[329527575,1718417524289,-512.89393755,0.00023561,3]
[329527576,1718417524301,-500.0,0.00023561,3]
[329527577,1718417524314,-500.0,0.00023561,3]
[329527578,1718417524328,-500.0,0.00023561,3]
[329527579,1718417524339,-509.64316196,0.00023561,3]
[329527580,1718417524352,-501.07,0.00023561,3]
[329527581,1718417524367,-500.0,0.00023561,3]
[329527582,1718417524381,-500.0,0.00023561,3]
[329527583,1718417524407,-500.0,0.00023561,3]
[329527584,1718417524427,-548.40004769,0.00023561,3]
[329527585,1718417524442,-500.0,0.00023561,3]
[329527586,1718417524455,-500.0,0.00023561,3]
[329527587,1718417524481,-500.0,0.00023561,3]
[329527588,1718417524493,-150.0,0.00023561,3]
[329527589,1718417524506,-284.39247878,0.00023561,3]
[329527590,1718417524517,-500.0,0.00023561,3]
[329527591,1718417524529,-500.0,0.00023561,3]
[329527592,1718417524541,-512.17541686,0.00023561,3]
[329527593,1718417524553,-500.0,0.00023561,3]
[329527594,1718417524568,-500.0,0.00023561,3]
[329527595,1718417524590,-500.0,0.00023561,3]
[329527596,1718417524604,-500.0,0.00023561,3]
[329527597,1718417524618,-500.0,0.00023561,3]
[329527598,1718417524661,-502.2,0.00023561,3]
[329527599,1718417524710,-500.0,0.00023561,3]
[329527600,1718417524756,-500.0,0.00023561,3]
[329527601,1718417524805,-672.79,0.00023561,3]
[329527602,1718417524831,-500.0,0.00023561,3]
[329527603,1718417524845,-500.0,0.00023561,3]
[329527604,1718417524872,-500.0,0.00023561,3]
[329527605,1718417524900,-500.0,0.00023561,3]
[329527606,1718417524915,-500.0,0.00023561,3]
[329527607,1718417524927,-870.98,0.00023561,3]
[329527608,1718417524939,-668.73,0.00023561,3]
[329527609,1718417524956,-500.0,0.00023561,3]
[329527610,1718417524972,-500.0,0.00023561,3]
[329527611,1718417524987,-500.0,0.00023561,3]
[329527612,1718417525004,-500.0,0.00023561,3]
[329527613,1718417525016,-500.0,0.00023561,3]
[329527614,1718417525028,-500.0,0.00023561,3]
[329527615,1718417525044,-500.0,0.00023561,3]
[329527616,1718417525054,-500.0,0.00023561,3]
[329527617,1718417525066,-1385.03,0.00023561,3]
[329527618,1718417525080,-500.0,0.00023561,3]
[329527619,1718417525093,-500.0,0.00023561,3]
[329527620,1718417525106,-500.0,0.00023561,3]
[329527621,1718417525129,-500.0,0.00023561,3]
[329527622,1718417525176,-500.0,0.00023561,3]
[329527623,1718417525189,-500.0,0.00023561,3]
[329527624,1718417525201,-545.94,0.00023561,3]
[329527625,1718417525212,-728.36,0.00023561,3]
[329527626,1718417525224,-888.58,0.00023561,3]
[329527627,1718417525237,-500.0,0.00023561,3]
[329527628,1718417525251,-500.0,0.00023561,3]
[329527629,1718417525262,-500.0,0.00023561,3]
[329527630,1718417525274,-500.0,0.00023561,3]
[329527631,1718417525287,-500.0,0.00023561,3]
[329527632,1718417525300,-500.0,0.00023561,3]
[329527633,1718417525315,-682.82,0.00023561,3]
[329527634,1718417525326,-500.0,0.00023561,3]
[329527635,1718417525337,-500.0,0.00023561,3]
[329527636,1718417525349,-500.0,0.00023561,3]
[329527637,1718417525362,-500.0,0.00023561,3]
[329527638,1718417525379,-532.27,0.00023561,3]
[329527639,1718417525391,-500.0,0.00023561,3]
[329527640,1718417525410,-4841.14,0.00023561,3]
[329527641,1718417525422,-547.951753,0.00023561,3]
[329527642,1718417525435,-606.39,0.00023561,3]
[329527643,1718417525446,-500.0,0.00023561,3]
[329527644,1718417525464,-856.26,0.00023561,3]
[329527645,1718417525477,-500.0,0.00023561,3]
[329527646,1718417525490,-500.0,0.00023561,3]
[329527647,1718417525501,-500.0,0.00023561,3]